fUSD/lending_fUSD_20240613
["ID","MTS","AMOUNT","RATE_DAILY","PERIOD"]
[329356831,1718277093965,-572.37,0.00025752,3]
[329356832,1718277093986,-500.0,0.00025752,3]
[329356833,1718277094002,-500.0,0.00025753,3]
[329356834,1718277094020,-500.0,0.00025753,2]
[329356835,1718277094039,-502.71946541,0.00025753,2]
[329356836,1718277094057,-500.0,0.00025753,3]
[329356837,1718277094074,-151.0,0.00025753,7]
[329356838,1718277094094,-189.254727,0.00025753,7]
[329356839,1718277094231,-500.0,0.00025753,3]
[329356840,1718277094249,-189.254727,0.00025753,7]
[329356841,1718277094261,-500.0,0.00025753,3]
[329356842,1718277094273,-500.0,0.00025753,3]
[329356843,1718277094288,-500.0,0.00025753,3]
[329356844,1718277094306,-500.0,0.00025753,3]
[329356845,1718277094326,-509.29548718,0.00025753,3]
[329356846,1718277094343,-214.00796641,0.00025753,3]
[329356847,1718277094355,-500.0,0.00025753,3]
[329356848,1718277094368,-500.0,0.00025753,3]
[329356849,1718277094380,-500.0,0.00025753,3]
[329356850,1718277094394,-444.61577547,0.00025753,3]
[329356851,1718277094406,-500.0,0.00025753,3]
[329356852,1718277094418,-500.0,0.00025753,3]
[329356853,1718277094429,-500.0,0.00025753,3]
[329356854,1718277094443,-150.0,0.00025754,2]
[329356855,1718277094455,-150.0,0.00025762,2]
[329356856,1718277094467,-9969.72,0.000258,2]
[329356857,1718277094484,-628.5,0.00025866,3]
[329356858,1718277094497,-877.35,0.00025866,3]
[329356859,1718277094511,-1070.7,0.00025866,3]
[329356860,1718277094524,-500.0,0.00025866,3]
[329356861,1718277094536,-871.84,0.00025866,3]
[329356862,1718277094553,-1196.79,0.00025866,3]
[329356863,1718277094569,-2448.85,0.00025866,3]
[329356864,1718277094582,-748.9,0.00025866,3]
[329356865,1718277094600,-1584.05,0.00025866,3]
[329356866,1718277094614,-875.77,0.00025866,3]
[329356867,1718277094627,-896.33,0.00025866,3]
[329356868,1718277094641,-1393.21,0.00025866,3]
[329356869,1718277094656,-712.29,0.00025866,3]
[329356870,1718277094668,-3021.74,0.00025866,3]
[329356871,1718277094684,-2955.13,0.00025866,3]
[329356872,1718277094697,-1592.21,0.00025866,3]
[329356873,1718277094709,-1489.31,0.00025866,3]
[329356874,1718277094722,-1351.15,0.00025866,3]
[329356875,1718277094739,-1097.22,0.00025866,3]
[329356876,1718277094753,-1841.9,0.00025866,3]
[329356877,1718277094764,-500.0,0.00025866,3]
[329356878,1718277094777,-1562.15,0.00025866,3]
[329356879,1718277094789,-500.0,0.00025866,3]
[329356880,1718277094802,-500.0,0.00025866,3]
[329356881,1718277094816,-1074.6,0.00025867,3]
[329356882,1718277094831,-31357.31,0.00025867,3]
[329356883,1718277094848,-1670.36,0.00025867,3]
[329356884,1718277094868,-1382.88,0.00025867,3]
[329356885,1718277094902,-739.94,0.00025867,3]
[329356886,1718277094940,-892.4,0.00025867,3]
[329356887,1718277094962,-1184.9,0.00025867,3]
[329356888,1718277094979,-585.64,0.00025867,3]
[329356889,1718277094999,-929.82,0.00025867,3]
[329356890,1718277095018,-623.27,0.00025867,3]
[329356891,1718277095034,-1120.48,0.00025867,3]
[329356892,1718277095046,-500.0,0.00025868,3]
[329356893,1718277095066,-500.0,0.00025868,3]
[329356894,1718277095081,-500.0,0.00025868,3]
[329356895,1718277095098,-187.76695112,0.00025868,3]
[329356896,1718277095111,-500.0,0.00025868,3]
[329356897,1718277095126,-574.30343383,0.00025868,3]
[329356898,1718277095138,-278.82646821,0.00025868,3]
[329356899,1718277095151,-500.0,0.00025868,3]
[329356900,1718277095164,-500.0,0.00025868,3]
[329356901,1718277095186,-500.0,0.00025868,3]
[329356902,1718277095262,-500.0,0.00025868,3]
[329356903,1718277095279,-500.0,0.00025868,3]
[329356904,1718277095319,-500.0,0.00025868,3]
[329356905,1718277095333,-500.0,0.00025868,3]
[329356906,1718277095355,-500.0,0.00025868,3]
[329356907,1718277095375,-500.0,0.00025868,3]
[329356908,1718277095389,-500.0,0.00025868,3]
[329356909,1718277095408,-500.0,0.00025868,3]
[329356910,1718277095424,-500.0,0.00025868,3]
[329356911,1718277095443,-500.0,0.00025868,3]
[329356912,1718277095464,-500.0,0.00025868,3]
[329356913,1718277095480,-500.0,0.00025868,3]
[329356914,1718277095497,-500.0,0.00025868,3]
[329356915,1718277095537,-500.0,0.00025868,3]
[329356916,1718277095559,-500.0,0.00025868,3]
[329356917,1718277095572,-653.07,0.00025868,3]
[329356918,1718277095586,-500.0,0.00025868,3]
[329356919,1718277095599,-500.0,0.00025868,3]
[329356920,1718277095616,-1199.36,0.00025868,3]
[329356921,1718277095651,-500.0,0.00025868,3]
[329356922,1718277095674,-500.0,0.00025868,3]
[329356923,1718277095687,-500.0,0.00025868,3]
[329356924,1718277095699,-500.0,0.00025868,3]
[329356925,1718277095711,-500.0,0.00025868,3]
[329356926,1718277095733,-500.0,0.00025868,3]
[329356927,1718277095748,-500.0,0.00025868,3]
[329356928,1718277095761,-500.0,0.00025868,3]
[329356929,1718277095773,-500.0,0.00025868,3]
[329356930,1718277095789,-500.0,0.00025868,3]
[329356931,1718277095806,-500.0,0.00025868,3]
[329356932,1718277095818,-760.53,0.00025868,3]
[329356933,1718277095831,-523.41378475,0.00025868,3]
[329356934,1718277095854,-531.05372653,0.00025868,3]
[329356935,1718277095869,-500.0,0.00025868,3]
[329356936,1718277095886,-500.0,0.00025868,3]
[329356937,1718277095898,-500.0,0.00025868,3]
[329356938,1718277095917,-500.0,0.00025868,3]
[329356939,1718277095936,-500.0,0.00025868,3]
[329356940,1718277095977,-500.0,0.00025868,3]
[329356941,1718277095996,-228.8,0.00025868,3]
[329356942,1718277096038,-500.0,0.00025868,3]
[329356943,1718277096053,-500.0,0.00025868,3]
[329356944,1718277096067,-500.0,0.00025868,3]
[329356945,1718277096081,-1016.21,0.00025868,3]
[329356946,1718277096093,-500.0,0.00025868,3]
[329356947,1718277096106,-803.45,0.00025868,3]
[329356948,1718277096118,-500.0,0.00025868,3]
[329356949,1718277096130,-500.0,0.00025868,3]
[329356950,1718277096146,-500.0,0.00025868,3]
[329356951,1718277096157,-500.0,0.00025868,3]
[329356952,1718277096175,-601.38323384,0.00025868,3]
[329356953,1718277096190,-500.0,0.00025868,3]
[329356954,1718277096228,-500.0,0.00025868,3]
[329356955,1718277096245,-913.83,0.00025868,3]
[329356956,1718277096264,-500.0,0.00025868,3]
[329356957,1718277096279,-878.65,0.00025868,3]
[329356958,1718277096304,-2296.66,0.00025868,3]
[329356959,1718277096319,-500.0,0.00025868,3]
[329356960,1718277096339,-762.45,0.00025868,3]
[329356961,1718277096355,-500.0,0.00025868,3]
[329356962,1718277096374,-555.03,0.00025868,3]
[329356963,1718277096404,-1924.86,0.00025868,3]
[329356964,1718277096430,-500.0,0.00025868,3]
[329356965,1718277096450,-1949.34,0.00025868,3]
[329356966,1718277096464,-3080.34,0.00025868,3]
[329356967,1718277096489,-500.0,0.00025868,3]
[329356968,1718277096510,-500.0,0.00025868,3]
[329356969,1718277096528,-500.0,0.00025868,3]
[329356970,1718277096541,-500.0,0.00025868,3]
[329356971,1718277096577,-500.0,0.00025868,3]
[329356972,1718277096592,-907.62,0.00025868,3]
[329356973,1718277096615,-525.39,0.00025868,3]
[329356974,1718277096632,-500.0,0.00025868,3]
[329356975,1718277096645,-985.91,0.00025868,3]
[329356976,1718277096658,-500.0,0.00025868,3]
[329356977,1718277096672,-2729.07,0.00025868,3]
[329356978,1718277096685,-500.0,0.00025868,3]
[329356979,1718277096707,-3064.01,0.00025868,3]
[329356980,1718277096729,-640.1,0.00025868,3]
[329356981,1718277096742,-151.75660723,0.00025868,3]
[329356982,1718277096756,-500.0,0.00025868,3]
[329356983,1718277096770,-500.0,0.00025868,3]
[329356984,1718277096791,-500.0,0.00025868,3]
[329356985,1718277096804,-500.0,0.00025868,3]
[329356986,1718277096817,-2850.36,0.00025868,3]
[329356987,1718277096831,-500.0,0.00025869,3]
[329356988,1718277096842,-500.0,0.00025869,3]
[329356989,1718277096855,-500.0,0.00025869,3]
[329356990,1718277096868,-500.0,0.00025869,3]
[329356991,1718277096883,-500.0,0.00025869,3]
[329356992,1718277096903,-500.0,0.00025869,3]
[329356993,1718277096921,-500.0,0.00025869,3]
[329356994,1718277096933,-500.0,0.00025869,3]
[329356995,1718277096956,-500.0,0.00025869,3]
[329356996,1718277096971,-500.0,0.00025869,3]
[329356997,1718277096992,-500.0,0.00025869,3]
[329356998,1718277097006,-500.0,0.00025869,3]
[329356999,1718277097026,-500.0,0.00025869,3]
[329357000,1718277097038,-500.0,0.00025869,3]
[329357001,1718277097053,-500.0,0.00025869,3]
[329357002,1718277097073,-260.19319326,0.00025869,3]
[329357003,1718277097087,-543.44,0.00025869,3]
[329357004,1718277097101,-500.0,0.00025869,3]
[329357005,1718277097116,-500.0,0.00025869,3]
[329357006,1718277097136,-500.0,0.00025869,3]
[329357007,1718277097150,-500.0,0.00025869,3]
[329357008,1718277097164,-500.0,0.00025869,3]
[329357009,1718277097176,-545.19,0.00025869,3]
[329357010,1718277097188,-500.0,0.00025869,3]
[329357011,1718277097201,-500.0,0.00025869,3]
[329357012,1718277097238,-500.0,0.00025869,3]
[329357013,1718277097251,-500.0,0.00025869,3]
[329357014,1718277097263,-866.32,0.00025869,3]
[329357015,1718277097278,-500.0,0.00025869,3]
[329357016,1718277097291,-554.24,0.00025869,3]
[329357017,1718277097309,-500.0,0.00025869,3]
[329357018,1718277097324,-538.1,0.00025869,3]
[329357019,1718277097338,-500.0,0.00025869,3]
[329357020,1718277097352,-587.53177719,0.00025869,3]
[329357021,1718277097368,-794.39,0.00025869,3]
[329357022,1718277097381,-500.0,0.00025869,3]
[329357023,1718277097397,-500.0,0.00025869,3]
[329357024,1718277097410,-500.0,0.00025869,3]
[329357025,1718277097424,-500.0,0.00025869,3]
[329357026,1718277097436,-405.87946069,0.00025869,3]
[329357027,1718277097448,-500.0,0.00025869,3]
[329357028,1718277097466,-200.0,0.00025869,3]
[329357029,1718277097481,-555.7,0.00025869,3]
[329357030,1718277097497,-500.0,0.00025869,3]
[329357031,1718277097509,-500.0,0.00025869,3]
[329357032,1718277097535,-1106.58,0.00025869,3]
[329357033,1718277097558,-500.0,0.00025869,3]
[329357034,1718277097570,-500.0,0.00025869,3]
[329357035,1718277097601,-500.0,0.00025869,3]
[329357036,1718277097620,-283.47,0.00025869,3]
[329357037,1718277097642,-619.19369965,0.00025869,3]
[329357038,1718277097658,-500.0,0.00025869,3]
[329357039,1718277097689,-500.0,0.00025869,3]
[329357040,1718277097711,-500.0,0.00025869,3]
[329357041,1718277097730,-1207.15,0.00025869,3]
[329357042,1718277097751,-500.0,0.00025869,3]
[329357043,1718277097768,-500.0,0.00025869,3]
[329357044,1718277097795,-940.28,0.00025869,3]
[329357045,1718277097819,-500.0,0.00025869,3]
[329357046,1718277097844,-633.48,0.00025869,3]
[329357047,1718277097857,-1695.46,0.00025869,3]
[329357048,1718277097882,-500.0,0.00025869,3]
[329357049,1718277097994,-1351.29,0.00025869,3]
[329357050,1718277098011,-500.0,0.00025869,3]
[329357051,1718277098029,-977.95,0.00025869,3]
[329357052,1718277098043,-557.92,0.00025869,3]
[329357053,1718277098064,-500.0,0.00025869,3]
[329357054,1718277098087,-500.0,0.00025869,3]
[329357055,1718277098113,-869.98,0.00025869,3]
[329357056,1718277098136,-2538.97,0.00025869,3]
[329357057,1718277098156,-774.79,0.00025869,3]
[329357058,1718277098170,-500.0,0.00025869,3]
[329357059,1718277098183,-500.0,0.00025869,3]
[329357060,1718277098196,-869.72,0.00025869,3]
[329357061,1718277098243,-500.0,0.00025869,3]
[329357062,1718277098254,-2643.48,0.00025869,3]
[329357063,1718277098271,-1050.99,0.00025869,3]
[329357064,1718277098286,-500.0,0.00025869,3]
[329357065,1718277098307,-6022.3,0.00025869,3]
[329357066,1718277098337,-594.46,0.00025869,3]
[329357067,1718277098374,-2325.51,0.00025869,3]
[329357068,1718277098387,-1340.93,0.00025869,3]
[329357069,1718277098407,-525.87,0.00025869,3]
[329357070,1718277098418,-2801.14,0.00025869,3]
[329357071,1718277098430,-556.9,0.00025869,3]
[329357072,1718277098443,-1037.02,0.00025869,3]
[329357073,1718277098465,-788.09,0.00025869,3]
[329357074,1718277098489,-500.0,0.00025869,3]
[329357075,1718277098508,-1590.22,0.00025869,3]
[329357076,1718277098520,-1299.11,0.00025869,3]
[329357077,1718277098532,-500.0,0.00025869,3]
[329357078,1718277098543,-1761.78,0.00025869,3]
[329357079,1718277098554,-500.0,0.00025869,3]
[329357080,1718277098572,-1262.69,0.00025869,3]
[329357081,1718277098589,-8305.14,0.00025869,3]
[329357082,1718277098606,-4418.73,0.00025869,3]
[329357083,1718277098620,-500.0,0.00025869,3]
[329357084,1718277098637,-577.13,0.00025869,3]
[329357085,1718277098653,-1444.06,0.00025869,3]
[329357086,1718277098681,-500.0,0.00025869,3]
[329357087,1718277098718,-725.83,0.00025869,3]
[329357088,1718277098746,-500.0,0.00025869,3]
[329357089,1718277098766,-1042.68,0.00025869,3]
[329357090,1718277098802,-334.36612699,0.00025869,3]
[329357091,1718277098815,-500.0,0.00025869,3]
[329357092,1718277098832,-3100.67,0.00025869,3]
[329357093,1718277098846,-500.0,0.00025869,3]
[329357094,1718277098867,-1727.08,0.00025869,3]
[329357095,1718277098886,-518.8,0.00025869,3]
[329357096,1718277098898,-500.0,0.00025869,3]
[329357097,1718277098911,-500.0,0.00025869,3]
[329357098,1718277098926,-1122.65,0.00025869,3]
[329357099,1718277098939,-500.0,0.00025869,3]
[329357100,1718277098958,-505.98,0.00025869,3]
[329357101,1718277098969,-500.0,0.00025869,3]
[329357102,1718277098980,-1309.02,0.00025869,3]
[329357103,1718277098991,-508.76895777,0.00025869,3]
[329357104,1718277099008,-662.75,0.00025869,3]
[329357105,1718277099019,-617.34,0.00025869,3]
[329357106,1718277099046,-983.88,0.00025869,3]
[329357107,1718277099071,-1386.52,0.00025869,3]
[329357108,1718277099084,-1442.64,0.00025869,3]
[329357109,1718277099096,-1828.6,0.00025869,3]
[329357110,1718277099111,-1892.77,0.00025869,3]
[329357111,1718277099128,-1002.34,0.00025869,3]
[329357112,1718277099144,-2616.45,0.00025869,3]
[329357113,1718277099157,-500.0,0.00025869,3]
[329357114,1718277099181,-1657.94,0.00025869,3]
[329357115,1718277099198,-1131.64,0.00025869,3]
[329357116,1718277099249,-1100.13,0.00025869,3]
[329357117,1718277099261,-329.50297546,0.00025869,3]
[329357118,1718277099275,-3181.1,0.00025869,3]
[329357119,1718277099292,-790.44,0.00025869,3]
[329357120,1718277099306,-150.0,0.0002589,2]
[329357121,1718277099319,-150.0,0.0002589,2]
[329357122,1718277099338,-150.0,0.0002589,2]
[329357123,1718277099350,-150.0,0.0002589,2]
[329357124,1718277099362,-150.0,0.0002589,2]
[329357125,1718277099376,-308.29,0.0002589,2]
[329357126,1718277099395,-1608.33890032,0.00025899,2]
[329357127,1718277099410,-224.0,0.000259,2]
[329357128,1718277099432,-355.0,0.000259,2]
[329357129,1718277099464,-1000.0,0.000259,2]
[329357130,1718277099477,-150.0,0.00025904,2]
[329357131,1718277099499,-150.0,0.0002593,2]
[329357132,1718277099515,-150.0,0.00025937,2]
[329357133,1718277099528,-695.20998317,0.00025971,2]
[329357134,1718277099549,-150.0,0.00025995,2]
[329357135,1718277099566,-2785.55,0.00026,2]
[329357136,1718277099580,-4053.1203069,0.00026,2]
[329357137,1718277099617,-1500.0,0.00026,2]
[329357138,1718277099629,-151.0,0.00026,7]
[329357139,1718277099644,-189.254727,0.00026,7]
[329357140,1718277099673,-189.254729,0.00026,7]
[329357141,1718277099689,-200.404358,0.00026,2]
[329357142,1718277099724,-150.0,0.00026004,2]
[329357143,1718277099743,-150.0,0.00026024,2]
[329357144,1718277099755,-1183.25,0.00026026,3]
[329357145,1718277099771,-500.0,0.00026026,3]
[329357146,1718277099785,-704.44,0.00026026,3]
[329357147,1718277099807,-500.0,0.00026026,3]
[329357148,1718277099831,-5852.16,0.00026026,3]
[329357149,1718277099846,-2891.73,0.00026026,3]
[329357150,1718277099891,-500.0,0.00026026,3]
[329357151,1718277099904,-1318.26,0.00026026,3]
[329357152,1718277099930,-2337.62,0.00026026,3]
[329357153,1718277099946,-1185.47,0.00026026,3]
[329357154,1718277099964,-500.0,0.00026026,3]
[329357155,1718277099986,-1475.74,0.00026026,3]
[329357156,1718277100005,-572.37,0.00026026,3]
[329357157,1718277100033,-500.0,0.00026026,3]
[329357158,1718277100046,-500.0,0.00026027,3]
[329357159,1718277100060,-500.0,0.00026027,2]
[329357160,1718277100081,-500.0,0.00026027,3]
[329357161,1718277100096,-500.0,0.00026027,3]
[329357162,1718277100113,-500.0,0.00026027,3]
[329357163,1718277100127,-500.0,0.00026027,3]
[329357164,1718277100167,-500.0,0.00026027,3]
[329357165,1718277100187,-228.98026168,0.00026027,3]
[329357166,1718277100231,-410.94349362,0.00026027,3]
[329357167,1718277100251,-500.0,0.00026027,3]
[329357168,1718277100266,-541.4140489,0.00026027,3]
[329357169,1718277100285,-500.0,0.00026027,3]
[329357170,1718277100307,-500.0,0.00026027,3]
[329357171,1718277100326,-718.02,0.00026027,2]
[329357172,1718277100350,-718.02,0.00026027,3]
[329357173,1718277100362,-718.02,0.00026027,3]
[329357174,1718277100376,-718.02,0.00026027,3]
[329357175,1718277100399,-718.02,0.00026027,3]
[329357176,1718277100419,-718.02,0.00026027,3]
[329357177,1718277100439,-526.20582968,0.00026028,2]
[329357178,1718277100460,-150.0,0.0002607,2]
[329357179,1718277100492,-150.0,0.00026078,2]
[329357180,1718277100513,-150.0,0.00026096,2]
[329357181,1718277100528,-164.14572184,0.00026121,2]
[329357182,1718277100547,-152.94225763,0.00026128,2]
[329357183,1718277100559,-526.20582968,0.0002613,2]
[329357184,1718277100570,-156.17044263,0.00026134,2]
[329357185,1718277100583,-158.58510325,0.00026139,2]
[329357186,1718277100597,-218.51742701,0.00026139,2]
[329357187,1718277100620,-628.5,0.0002614,3]
[329357188,1718277100642,-877.35,0.0002614,3]
[329357189,1718277100655,-1070.7,0.0002614,3]
[329357190,1718277100668,-500.0,0.0002614,3]
[329357191,1718277100683,-871.84,0.0002614,3]
[329357192,1718277100702,-1196.79,0.0002614,3]
[329357193,1718277100723,-2448.85,0.0002614,3]
[329357194,1718277100745,-748.9,0.0002614,3]
[329357195,1718277100759,-1584.05,0.0002614,3]
[329357196,1718277100777,-875.77,0.0002614,3]
[329357197,1718277100799,-896.33,0.0002614,3]
[329357198,1718277100826,-1393.21,0.0002614,3]
[329357199,1718277100841,-712.29,0.0002614,3]
[329357200,1718277100869,-3021.74,0.0002614,3]
[329357201,1718277100887,-2955.13,0.0002614,3]
[329357202,1718277100899,-1592.21,0.0002614,3]
[329357203,1718277100914,-1489.31,0.0002614,3]
[329357204,1718277100933,-1351.15,0.0002614,3]
[329357205,1718277100950,-1097.22,0.0002614,3]
[329357206,1718277100978,-1841.9,0.0002614,3]
[329357207,1718277101003,-500.0,0.0002614,3]
[329357208,1718277101039,-1562.15,0.0002614,3]
[329357209,1718277101058,-500.0,0.0002614,3]
[329357210,1718277101087,-500.0,0.0002614,3]
[329357211,1718277101109,-1074.6,0.00026141,3]
[329357212,1718277101124,-31357.31,0.00026141,3]
[329357213,1718277101138,-1670.36,0.00026141,3]
[329357214,1718277101154,-1382.88,0.00026141,3]
[329357215,1718277101170,-739.94,0.00026141,3]
[329357216,1718277101185,-892.4,0.00026141,3]
[329357217,1718277101199,-1184.9,0.00026141,3]
[329357218,1718277101243,-585.64,0.00026141,3]
[329357219,1718277101266,-929.82,0.00026141,3]
[329357220,1718277101284,-623.27,0.00026141,3]
[329357221,1718277101302,-1120.48,0.00026141,3]
[329357222,1718277101318,-500.0,0.00026142,3]
[329357223,1718277101330,-500.0,0.00026142,3]
[329357224,1718277101345,-500.0,0.00026142,3]
[329357225,1718277101379,-500.0,0.00026142,3]
[329357226,1718277101392,-500.0,0.00026142,3]
[329357227,1718277101409,-543.48,0.00026142,3]
[329357228,1718277101426,-500.0,0.00026142,3]
[329357229,1718277101460,-500.0,0.00026142,3]
[329357230,1718277101488,-500.0,0.00026142,3]
[329357231,1718277101519,-500.0,0.00026142,3]
[329357232,1718277101535,-500.0,0.00026142,3]
[329357233,1718277101550,-500.0,0.00026142,3]
[329357234,1718277101569,-653.07,0.00026142,3]
[329357235,1718277101591,-500.0,0.00026142,3]
[329357236,1718277101650,-500.0,0.00026142,3]
[329357237,1718277101672,-1199.36,0.00026142,3]
[329357238,1718277101692,-503.36,0.00026142,3]
[329357239,1718277101709,-500.0,0.00026142,3]
[329357240,1718277101722,-500.0,0.00026142,3]
[329357241,1718277101737,-626.77,0.00026142,3]
[329357242,1718277101762,-500.0,0.00026142,3]
[329357243,1718277101782,-500.0,0.00026142,3]
[329357244,1718277101801,-500.0,0.00026142,3]
[329357245,1718277101826,-500.0,0.00026142,3]
[329357246,1718277101848,-256.26040937,0.00026142,3]
[329357247,1718277101868,-500.0,0.00026142,3]
[329357248,1718277101885,-760.53,0.00026142,3]
[329357249,1718277101904,-500.0,0.00026142,3]
[329357250,1718277101917,-349.74,0.00026142,3]
[329357251,1718277101941,-500.0,0.00026142,3]
[329357252,1718277101957,-500.0,0.00026142,3]
[329357253,1718277101970,-511.49659181,0.00026142,3]
[329357254,1718277101985,-500.0,0.00026142,3]
[329357255,1718277101998,-500.0,0.00026142,3]
[329357256,1718277102039,-500.0,0.00026142,3]
[329357257,1718277102054,-500.0,0.00026142,3]
[329357258,1718277102065,-1016.21,0.00026142,3]
[329357259,1718277102084,-500.0,0.00026142,3]
[329357260,1718277102100,-803.45,0.00026142,3]
[329357261,1718277102117,-500.0,0.00026142,3]
[329357262,1718277102145,-500.0,0.00026142,3]
[329357263,1718277102166,-536.50707605,0.00026142,3]
[329357264,1718277102186,-500.0,0.00026142,3]
[329357265,1718277102222,-500.0,0.00026142,3]
[329357266,1718277102254,-500.0,0.00026142,3]
[329357267,1718277102271,-913.83,0.00026142,3]
[329357268,1718277102288,-500.0,0.00026142,3]
[329357269,1718277102308,-878.65,0.00026142,3]
[329357270,1718277102322,-2296.66,0.00026142,3]
[329357271,1718277102339,-500.0,0.00026142,3]
[329357272,1718277102364,-762.45,0.00026142,3]
[329357273,1718277102382,-500.0,0.00026142,3]
[329357274,1718277102398,-555.03,0.00026142,3]
[329357275,1718277102414,-1924.86,0.00026142,3]
[329357276,1718277102429,-500.0,0.00026142,3]
[329357277,1718277102443,-1949.34,0.00026142,3]
[329357278,1718277102462,-3080.34,0.00026142,3]
[329357279,1718277102505,-500.0,0.00026142,3]
[329357280,1718277102523,-500.0,0.00026142,3]
[329357281,1718277102544,-500.0,0.00026142,3]
[329357282,1718277102603,-500.0,0.00026142,3]
[329357283,1718277102645,-500.0,0.00026142,3]
[329357284,1718277102667,-907.62,0.00026142,3]
[329357285,1718277102698,-525.39,0.00026142,3]
[329357286,1718277102718,-500.0,0.00026142,3]
[329357287,1718277102738,-985.91,0.00026142,3]
[329357288,1718277102762,-500.0,0.00026142,3]
[329357289,1718277102780,-2729.07,0.00026142,3]
[329357290,1718277102800,-500.0,0.00026142,3]
[329357291,1718277102818,-3064.01,0.00026142,3]
[329357292,1718277102832,-640.1,0.00026142,3]
[329357293,1718277102851,-500.0,0.00026142,3]
[329357294,1718277102864,-500.0,0.00026142,3]
[329357295,1718277102878,-405.79920722,0.00026142,3]
[329357296,1718277102895,-500.0,0.00026142,3]
[329357297,1718277102912,-2850.36,0.00026142,3]
[329357298,1718277102927,-550.35928259,0.00026143,3]
[329357299,1718277102940,-500.0,0.00026143,3]
[329357300,1718277102967,-500.0,0.00026143,3]
[329357301,1718277102982,-500.0,0.00026143,3]
[329357302,1718277102998,-500.0,0.00026143,3]
[329357303,1718277103010,-215.12439765,0.00026143,3]
[329357304,1718277103026,-500.0,0.00026143,3]
[329357305,1718277103037,-500.0,0.00026143,3]
[329357306,1718277103052,-500.0,0.00026143,3]
[329357307,1718277103065,-500.0,0.00026143,3]
[329357308,1718277103080,-500.0,0.00026143,3]
[329357309,1718277103098,-543.44,0.00026143,3]
[329357310,1718277103113,-500.0,0.00026143,3]
[329357311,1718277103134,-500.0,0.00026143,3]
[329357312,1718277103150,-500.0,0.00026143,3]
[329357313,1718277103164,-517.46596701,0.00026143,3]
[329357314,1718277103179,-545.19,0.00026143,3]
[329357315,1718277103193,-500.0,0.00026143,3]
[329357316,1718277103207,-500.0,0.00026143,3]
[329357317,1718277103251,-500.0,0.00026143,3]
[329357318,1718277103291,-866.32,0.00026143,3]
[329357319,1718277103312,-500.0,0.00026143,3]
[329357320,1718277103339,-554.24,0.00026143,3]
[329357321,1718277103353,-500.0,0.00026143,3]
[329357322,1718277103368,-510.6523979,0.00026143,3]
[329357323,1718277103392,-794.39,0.00026143,3]
[329357324,1718277103407,-521.32995839,0.00026143,3]
[329357325,1718277103433,-500.0,0.00026143,3]
[329357326,1718277103447,-500.0,0.00026143,3]
[329357327,1718277103494,-500.0,0.00026143,3]
[329357328,1718277103523,-500.0,0.00026143,3]
[329357329,1718277103551,-200.0,0.00026143,3]
[329357330,1718277103570,-555.7,0.00026143,3]